Workbook

Sheet Elolap

Sheet Tamogatastartalom
L1: =IF(SUM(M7:M126)<C23,"A folyósítások összege kevesebb, mint a hitelösszeg","A folyósítások összege több, mint a hitelösszeg") -> A folyósítások összege kevesebb, mint a hitelösszeg | T1: =IF(SUM(U7:U126)<C23,"A törlesztések összege kevesebb, mint a hitelösszeg","A törlesztések összege több, mint a hitelösszeg") -> A törlesztések összege kevesebb, mint a hitelösszeg
B3: Ügyfél neve: | F3: Hitelösszeg (EUR) | I3: =IF(C9="HUF",C23/C10,C23) -> 322580.6452 | L3: Egyedi folyósítás dátuma | M3: Folyósítás összege | T3: Egyedi törlesztés dátuma | U3: Tőkeamortizáció egyedi törlesztés esetén | V3: periódusközi kamatszámítás | AA3: maradék kamatszámítás | AK3: Piaci konstrukció | AN3: Támogatott konstruckió | AR3: Támogatástartalom | AU3: Támogatástartalom + egyéb kedvezmények
D4: -0.04 | F4: =IF(tenylegestt=0,"Az ügylet nem finanszírozható","Ténylegesen felvett hitel támogatástartalma (EUR)") -> Ténylegesen felvett hitel támogatástartalma (EUR) | I4: =IF(C9="HUF",AR5/C10,AR5) -> 48413.61025 | P4: kamat | Q4: támogatott | V4: dátumtól | W4: tőke | X4: kamat | Y4: támogatott | AA4: dátumtól | AB4: amort | AC4: tőke | AD4: maradék | AE4: t maradék | AI4: Periodus | AJ4: Dátum | AK4: Tőke | AL4: Tőkeamt. | AM4: Kamatfiz. | AN4: Tőke | AO4: Tőkeamt. | AP4: Kamatfiz. | AR4: FV | AS4: PV
B5: Pénzügyi intézmény neve refinanszírozás esetén: | F5: Hitelösszeg (HUF) | I5: =I3*C10 -> 100000000 | P5: =SUM(P7:P126) -> -2876712.329 | Q5: =SUM(Q7:Q126) -> -1438356.164 | X5: =SUM(X7:X126) -> 0 | Y5: =SUM(Y7:Y126) -> 0 | AD5: =SUM(AD7:AD126) -> -30016438.36 | AE5: =SUM(AE7:AE126) -> -15008219.18 | AK5: =+AK7 -> 100000000 | AL5: =SUM(AL7:AL126) -> 0 | AM5: =SUM(AM7:AM126) -> -30016438.36 | AN5: =+AN7 -> 100000000 | AO5: =SUM(AO7:AO126) -> 0 | AP5: =SUM(AP7:AP126) -> -15008219.18 | AR5: =SUM(AR7:AR126) -> 15008219.18 | AS5: =SUM(AS7:AS126) -> 13706694.74 | AU5: =AS5 -> 13706694.74
J6: Törlesztésiidőszak vége? | AI6: 0 | AJ6: =MAX(C25,MIN(L7:L126)) -> 2020-05-30
F7: COVID Közlemény 3.1 alapján megítélt támogatásokon felül igénybe vehető szabad keret | J7: =AI7>$D$15 -> FALSE | N7: =C25 -> 2020-05-30 | O7: =IF(ISBLANK(L7),C23,0) -> 100000000 | P7: =IF(AND(ISBLANK(L6),AH7<>1),0,IFERROR(-O7*piacikamat/365*(IF(ISBLANK(L7),$C$26,L7)-N7),"")) -> -2876712.329 | Q7: =IF(AND(ISBLANK(L6),AH7<>1),0,IFERROR(-O7*tenylegeskamat/365*(IF(ISBLANK(L7),$C$26,L7)-N7),"")) -> -1438356.164 | R7: =IFERROR(IF(ISBLANK(L7),$C$26,L7)-N7,"") -> 350 | V7: =IF(ISNA(MAX(T6,INDEX(AJ$6:AJ$126,MATCH(T7-1,AJ$6:AJ$126,1)))),"",MAX(T6,INDEX(AJ$6:AJ$126,MATCH(T7-1,AJ$6:AJ$126,1)))) ->  | W7: =IF(ISNA(MIN(IF(OR(ISBLANK(W6),W6=""),INDEX(AK$7:AK$126,MATCH(T7,AJ$7:AJ$126,1)),W6-U6),INDEX(AK$7:AK$126,MATCH(T7,AJ$7:AJ$126,1)))),"",MIN(IF(OR(ISBLANK(W6),W6=""),INDEX(AK$7:AK$126,MATCH(T7,AJ$7:AJ$126,1)),W6-U6),INDEX(AK$7:AK$126,MATCH(T7,AJ$7:AJ$126,1)))) ->  | X7: =IFERROR(-W7*piacikamat/365*(T7-V7),"") ->  | Y7: =IFERROR(-W7*tenylegeskamat/365*(T7-V7),"") ->  | Z7: =IFERROR(T7-V7,"") ->  | AA7: =MAX(AJ6,IF(ISNA(INDEX(T$7:T$126,MATCH(AJ7,T$7:T$126,1))),0,INDEX(T$7:T$126,MATCH(AJ7,T$7:T$126,1)))) -> 2020-05-30 | AB7: =IF(ISNA(INDEX(U$7:U$126,MATCH(AJ7,T$7:T$126,1))),0,INDEX(U$7:U$126,MATCH(AJ7,T$7:T$126,1))) -> 0 | AC7: =IF(ISNA(INDEX(W$7:W$126,MATCH(AJ7,T$7:T$126,1))),AK7,INDEX(W$7:W$126,MATCH(AJ7,T$7:T$126,1))) -> 100000000 | AD7: =IFERROR(-(AC7-AB7)*piacikamat/365*(AJ7-AA7),0) -> -2876712.329 | AE7: =IFERROR(-(AC7-AB7)*tenylegeskamat/365*(AJ7-AA7),0) -> -1438356.164 | AF7: =IFERROR(AJ7-AA7,"") -> 350 | AH7: 1 | AI7: =+IF(C27-C26<>0,1,"") -> 1 | AJ7: =C26 -> 2021-05-15 | AK7: =IF(+C23<>0,C23,IF(AI7>0,C23*J7,"")) -> 100000000 | AL7: =-SUMIFS(U$7:U$126,T$7:T$126,">"&AJ6,T$7:T$126,"<="&AJ7) -> 0 | AM7: =SUM(P7:P126) -> -2876712.329 | AN7: =+AK7 -> 100000000 | AO7: =-SUMIFS(U$7:U$126,T$7:T$126,">"&AJ6,T$7:T$126,"<="&AJ7) -> 0 | AP7: =SUM(Q7:Q126) -> -1438356.164 | AR7: =IFERROR(MAX((ABS(AM7)-ABS(AP7)),0),"") -> 1438356.164 | AS7: =IFERROR(AR7/(1+($C$11+1%)/365*(AJ7-C24)),"") -> 1412923.541 | AT7: =IFERROR(AJ7-AJ6,"") -> 350
B8: PIACI KAMAT MEGHATÁROZÁSA | G8: Általános szabály | H8: Mezőgazdasági szabály | I8: Halászati szabály | J8: =AI8>$D$15 -> FALSE | N8: =IF(ISBLANK(L7),"",L7) ->  | O8: =IF(ISBLANK(L7),0,M7+O7) -> 0 | P8: 0 | Q8: 0 | V8: =IF(ISNA(MAX(T7,INDEX(AJ$6:AJ$126,MATCH(T8-1,AJ$6:AJ$126,1)))),"",MAX(T7,INDEX(AJ$6:AJ$126,MATCH(T8-1,AJ$6:AJ$126,1)))) ->  | W8: =IF(ISNA(MIN(IF(OR(ISBLANK(W7),W7=""),INDEX(AK$7:AK$126,MATCH(T8,AJ$7:AJ$126,1)),W7-U7),INDEX(AK$7:AK$126,MATCH(T8,AJ$7:AJ$126,1)))),"",MIN(IF(OR(ISBLANK(W7),W7=""),INDEX(AK$7:AK$126,MATCH(T8,AJ$7:AJ$126,1)),W7-U7),INDEX(AK$7:AK$126,MATCH(T8,AJ$7:AJ$126,1)))) ->  | AA8: =MAX(AJ7,IF(ISNA(INDEX(T$7:T$126,MATCH(AJ8,T$7:T$126,1))),0,INDEX(T$7:T$126,MATCH(AJ8,T$7:T$126,1)))) -> 2021-05-15 | AB8: =IF(ISNA(INDEX(U$7:U$126,MATCH(AJ8,T$7:T$126,1))),0,INDEX(U$7:U$126,MATCH(AJ8,T$7:T$126,1))) -> 0 | AC8: =IF(ISNA(INDEX(W$7:W$126,MATCH(AJ8,T$7:T$126,1))),AK8,INDEX(W$7:W$126,MATCH(AJ8,T$7:T$126,1))) -> 100000000 | AD8: -254794.5205 | AE8: -127397.2603 | AF8: 31 | AH8: 2 | AI8: =IF(COUNT(AJ8)=1,AI7+1,"") -> 2 | AJ8: =IF(OR(AJ7=$C$27,AJ7=""),"",IFERROR(IF(EDATE($C$26,(AH8-1)*12/$D$19)<=$C$27,EDATE($C$26,(AH8-1)*12/$D$19),$C$27),"")) -> 2021-06-15 | AK8: =+IF(COUNT(AK7)<>0,SUM(AK7:AL7)*(1-J8),"") -> 100000000 | AL8: =-SUMIFS(U$7:U$126,T$7:T$126,">"&AJ7,T$7:T$126,"<="&AJ8) -> 0 | AM8: =SUMIFS(X$7:X$126,T$7:T$126,">"&AJ7,T$7:T$126,"<="&AJ8)+AD8 -> -254794.5205 | AN8: =+IF(COUNT(AN7)<>0,SUM(AN7:AO7)*(1-J8),"") -> 100000000 | AO8: =-SUMIFS(U$7:U$126,T$7:T$126,">"&AJ7,T$7:T$126,"<="&AJ8) -> 0 | AP8: =SUMIFS(Y$7:Y$126,T$7:T$126,">"&AJ7,T$7:T$126,"<="&AJ8)+AE8 -> -127397.2603 | AR8: =IFERROR(MAX((ABS(AM8)-ABS(AP8)),0),"") -> 127397.2603 | AS8: =IFERROR(AR8/POWER(1+($C$11+1%)/$D$19,AI8-1)/(1+($C$11+1%)/365*($AJ$7-$C$24)),"") -> 124957.2206 | AT8: 31
B9: Hitel devizaneme | C9: HUF | D9: Makrohoz kellenek (ne töröld ki!): | J9: FALSE | N9: =IF(ISBLANK(L8),"",L8) ->  | O9: =IF(ISBLANK(L8),0,M8+O8) -> 0 | P9: 0 | Q9: 0 | AA9: 2021-06-15 | AB9: 0 | AC9: 100000000 | AD9: -246575.3425 | AE9: -123287.6712 | AF9: 30 | AH9: 3 | AI9: =IF(COUNT(AJ9)=1,AI8+1,"") -> 3 | AJ9: 2021-07-15 | AK9: 100000000 | AL9: 0 | AM9: =SUMIFS(X$7:X$126,T$7:T$126,">"&AJ8,T$7:T$126,"<="&AJ9)+AD9 -> -246575.3425 | AN9: 100000000 | AO9: 0 | AP9: =SUMIFS(Y$7:Y$126,T$7:T$126,">"&AJ8,T$7:T$126,"<="&AJ9)+AE9 -> -123287.6712 | AR9: 123287.6712 | AS9: 120745.2247 | AT9: 30
B10: HUF/EUR árfolyam | C10: 310 | D10: =+C17/D19 -> 0.0025 | F10: Maximális hitelösszeghez tartozó támogatástartalom (EUR) | G10: =IF(1800000-C31-C32-C33<=0,"Nem jogosult",1800000-C31-C32-C33) -> 1800000 | H10: =IF(mezogazdkizarok=0,"Nem releváns",IF(MIN(225000-C31,1800000-C31-C32-C33,270000-C31-C32)<=0,"Nem jogosult",MIN(225000-C31,1800000-C31-C32-C33,270000-C31-C32))) -> Nem releváns | I10: =IF(halaszatikizarok=0,"Nem releváns",IF(MIN(270000-C32,1800000-C31-C32-C33,270000-C31-C32)<=0,"Nem jogosult",MIN(270000-C32,1800000-C31-C32-C33,270000-C31-C32))) -> Nem releváns | J10: FALSE | O10: 0 | P10: 0 | Q10: 0 | AA10: 2021-07-15 | AB10: 0 | AC10: 100000000 | AD10: -254794.5205 | AE10: -127397.2603 | AF10: 31 | AH10: 4 | AI10: =IF(COUNT(AJ10)=1,AI9+1,"") -> 4 | AJ10: 2021-08-15 | AK10: 100000000 | AL10: 0 | AM10: -254794.5205 | AN10: 100000000 | AO10: 0 | AP10: -127397.2603 | AR10: 127397.2603 | AS10: 124583.1907 | AT10: 31
B11: Referencia alapkamat | C11: 0.008 | J11: FALSE | O11: 0 | P11: 0 | Q11: 0 | AA11: 2021-08-15 | AB11: 0 | AC11: 100000000 | AD11: -254794.5205 | AE11: -127397.2603 | AF11: 31 | AH11: 5 | AI11: 5 | AJ11: 2021-09-15 | AK11: 100000000 | AL11: 0 | AM11: -254794.5205 | AN11: 100000000 | AO11: 0 | AP11: -127397.2603 | AR11: 127397.2603 | AS11: 124396.5958 | AT11: 31
B12: Van hitelfelvevői múltja vagy mérleg alapú hitelminősítése a hitelfelvevőnek? | C12: Van | D12: 0.0001 | J12: FALSE | O12: 0 | P12: 0 | Q12: 0 | AA12: 2021-09-15 | AB12: 0 | AC12: 100000000 | AD12: -246575.3425 | AE12: -123287.6712 | AF12: 30 | AH12: 6 | AI12: 6 | AJ12: 2021-10-15 | AK12: 100000000 | AL12: 0 | AM12: -246575.3425 | AN12: 100000000 | AO12: 0 | AP12: -123287.6712 | AR12: 123287.6712 | AS12: 120203.4972 | AT12: 30
B13: Cégbesorolás | J13: FALSE | O13: 0 | P13: 0 | Q13: 0 | AA13: 2021-10-15 | AB13: 0 | AC13: 100000000 | AD13: -254794.5205 | AE13: -127397.2603 | AF13: 31 | AH13: 7 | AI13: 7 | AJ13: 2021-11-15 | AK13: 100000000 | AL13: 0 | AM13: -254794.5205 | AN13: 100000000 | AO13: 0 | AP13: -127397.2603 | AR13: 127397.2603 | AS13: 124024.2441 | AT13: 31
B14: Adósminősítés | C14: Kielégítő | J14: FALSE | O14: 0 | P14: 0 | Q14: 0 | AA14: 2021-11-15 | AB14: 0 | AC14: 100000000 | AD14: -246575.3425 | AE14: -123287.6712 | AF14: 30 | AH14: 8 | AI14: 8 | AJ14: 2021-12-15 | AK14: 100000000 | AL14: 0 | AM14: -246575.3425 | AN14: 100000000 | AO14: 0 | AP14: -123287.6712 | AR14: 123287.6712 | AS14: 119843.6965 | AT14: 30
B15: Fedezettség | C15: Általános | D15: =COUNT(AI7:AI126) -> 110 | J15: FALSE | O15: 0 | P15: 0 | Q15: 0 | AA15: 2021-12-15 | AB15: 0 | AC15: 100000000 | AD15: -254794.5205 | AE15: -127397.2603 | AF15: 31 | AH15: 9 | AI15: 9 | AJ15: 2022-01-15 | AK15: 100000000 | AL15: 0 | AM15: -254794.5205 | AN15: 100000000 | AO15: 0 | AP15: -127397.2603 | AR15: 127397.2603 | AS15: 123653.0068 | AT15: 31
B16: Kockázati felár (bázispont) | C16: =IF(C12="Van",OFFSET(Adatok!$E$4,MATCH(C14,Adatok!$E$5:$E$9,0),MATCH(C15,Adatok!$F$4:$H$4,0),),MAX(OFFSET(Adatok!$E$4,MATCH(C14,Adatok!$E$5:$E$9,0),MATCH(C15,Adatok!$F$4:$H$4,0),),400)) -> 220 | J16: FALSE | O16: 0 | P16: 0 | Q16: 0 | AA16: 2022-01-15 | AB16: 0 | AC16: 100000000 | AD16: -254794.5205 | AE16: -127397.2603 | AF16: 31 | AH16: 10 | AI16: =IF(COUNT(AJ16)=1,AI15+1,"") -> 10 | AJ16: 2022-02-15 | AK16: 100000000 | AL16: 0 | AM16: -254794.5205 | AN16: 100000000 | AO16: 0 | AP16: -127397.2603 | AR16: 127397.2603 | AS16: 123467.8051 | AT16: 31
B17: Egyéni referencia kamatláb | C17: =+(C11+C16/10000) -> 0.03 | J17: FALSE | O17: 0 | P17: 0 | Q17: 0 | AA17: 2022-02-15 | AB17: 0 | AC17: 100000000 | AD17: -230136.9863 | AE17: -115068.4932 | AF17: 28 | AH17: 11 | AI17: =IF(COUNT(AJ17)=1,AI16+1,"") -> 11 | AJ17: 2022-03-15 | AK17: 100000000 | AL17: 0 | AM17: -230136.9863 | AN17: 100000000 | AO17: 0 | AP17: -115068.4932 | AR17: 115068.4932 | AS17: 111352.2794 | AT17: 28
J18: FALSE | O18: 0 | P18: 0 | Q18: 0 | AA18: 2022-03-15 | AB18: 0 | AC18: 100000000 | AD18: -254794.5205 | AE18: -127397.2603 | AF18: 31 | AH18: 12 | AI18: 12 | AJ18: 2022-04-15 | AK18: 100000000 | AL18: 0 | AM18: -254794.5205 | AN18: 100000000 | AO18: 0 | AP18: -127397.2603 | AR18: 127397.2603 | AS18: 123098.2334 | AT18: 31
B19: HITELKARAKTERISZTIKA | D19: =VLOOKUP($C$29,Adatok!P3:Q5,2,0) -> 12 | J19: FALSE | O19: 0 | P19: 0 | Q19: 0 | AA19: 2022-04-15 | AB19: 0 | AC19: 100000000 | AD19: -246575.3425 | AE19: -123287.6712 | AF19: 30 | AH19: 13 | AI19: 13 | AJ19: 2022-05-15 | AK19: 100000000 | AL19: 0 | AM19: -246575.3425 | AN19: 100000000 | AO19: 0 | AP19: -123287.6712 | AR19: 123287.6712 | AS19: 118948.8993 | AT19: 30
B20: Hitel fajtája/célja | C20: Lízing | J20: FALSE | O20: 0 | P20: 0 | Q20: 0 | AA20: 2022-05-15 | AB20: 0 | AC20: 100000000 | AD20: -254794.5205 | AE20: -127397.2603 | AF20: 31 | AH20: 14 | AI20: 14 | AJ20: 2022-06-15 | AK20: 100000000 | AL20: 0 | AM20: -254794.5205 | AN20: 100000000 | AO20: 0 | AP20: -127397.2603 | AR20: 127397.2603 | AS20: 122729.768 | AT20: 31
B21: Vállalat mérete | C21: KKV | J21: FALSE | O21: 0 | P21: 0 | Q21: 0 | AA21: 2022-06-15 | AB21: 0 | AC21: 100000000 | AD21: -246575.3425 | AE21: -123287.6712 | AF21: 30 | AH21: 15 | AI21: 15 | AJ21: 2022-07-15 | AK21: 100000000 | AL21: 0 | AM21: -246575.3425 | AN21: 100000000 | AO21: 0 | AP21: -123287.6712 | AR21: 123287.6712 | AS21: 118592.8539 | AT21: 30
B22: Támogatás jogalapja | C22: Egyéb | J22: FALSE | O22: 0 | P22: 0 | Q22: 0 | AA22: 2022-07-15 | AB22: 0 | AC22: 100000000 | AD22: -254794.5205 | AE22: -127397.2603 | AF22: 31 | AH22: 16 | AI22: 16 | AJ22: 2022-08-15 | AK22: 100000000 | AL22: 0 | AM22: -254794.5205 | AN22: 100000000 | AO22: 0 | AP22: -127397.2603 | AR22: 127397.2603 | AS22: 122362.4055 | AT22: 31
B23: =IF(C9="HUF",IF(C23>3500000000,"A hitelösszeg nem haladhatja meg a 3,5 milliárd forintot!","Hitelösszeg ("&C9&")"),IF(C23>10000000,"A hitelösszeg nem haladhatja meg a 10 millió eurót!","Hitelösszeg ("&C9&")")) -> Hitelösszeg (HUF) | C23: 100000000 | J23: FALSE | O23: 0 | P23: 0 | Q23: 0 | AA23: 2022-08-15 | AB23: 0 | AC23: 100000000 | AD23: -254794.5205 | AE23: -127397.2603 | AF23: 31 | AH23: 17 | AI23: 17 | AJ23: 2022-09-15 | AK23: 100000000 | AL23: 0 | AM23: -254794.5205 | AN23: 100000000 | AO23: 0 | AP23: -127397.2603 | AR23: 127397.2603 | AS23: 122179.1368 | AT23: 31
B24: Hitel jóváhagyásának várható időpontja (EXIM döntés dátuma) | C24: 2020-05-15 | J24: FALSE | O24: 0 | P24: 0 | Q24: 0 | AA24: 2022-09-15 | AB24: 0 | AC24: 100000000 | AD24: -246575.3425 | AE24: -123287.6712 | AF24: 30 | AH24: 18 | AI24: 18 | AJ24: 2022-10-15 | AK24: 100000000 | AL24: 0 | AM24: -246575.3425 | AN24: 100000000 | AO24: 0 | AP24: -123287.6712 | AR24: 123287.6712 | AS24: 118060.7831 | AT24: 30
B25: ="Szerződéskötés várható dátuma"&IF(C25>DATE(2021,12,31)," - Nem lehet későbbi, mint 2021.12.31","") -> Szerződéskötés várható dátuma | C25: 2020-05-30 | J25: FALSE | O25: 0 | P25: 0 | Q25: 0 | AA25: 2022-10-15 | AB25: 0 | AC25: 100000000 | AD25: -254794.5205 | AE25: -127397.2603 | AF25: 31 | AH25: 19 | AI25: 19 | AJ25: 2022-11-15 | AK25: 100000000 | AL25: 0 | AM25: -254794.5205 | AN25: 100000000 | AO25: 0 | AP25: -127397.2603 | AR25: 127397.2603 | AS25: 121813.4224 | AT25: 31
B26: Első törlesztés várható dátuma | C26: 2021-05-15 | J26: FALSE | O26: 0 | P26: 0 | Q26: 0 | AA26: 2022-11-15 | AB26: 0 | AC26: 100000000 | AD26: -246575.3425 | AE26: -123287.6712 | AF26: 30 | AH26: 20 | AI26: 20 | AJ26: 2022-12-15 | AK26: 100000000 | AL26: 0 | AM26: -246575.3425 | AN26: 100000000 | AO26: 0 | AP26: -123287.6712 | AR26: 123287.6712 | AS26: 117707.3961 | AT26: 30
B27: =IF(C27>EDATE(C25,120),"A futamidő nem haladhatja meg a 10 évet","Hitel végső lejáratának várható dátuma") -> Hitel végső lejáratának várható dátuma | C27: 2030-05-30 | J27: FALSE | O27: 0 | P27: 0 | Q27: 0 | AA27: 2022-12-15 | AB27: 0 | AC27: 100000000 | AD27: -254794.5205 | AE27: -127397.2603 | AF27: 31 | AH27: 21 | AI27: 21 | AJ27: 2023-01-15 | AK27: 100000000 | AL27: 0 | AM27: -254794.5205 | AN27: 100000000 | AO27: 0 | AP27: -127397.2603 | AR27: 127397.2603 | AS27: 121448.8027 | AT27: 31
B28: Tényleges ügyleti kamat | C28: =IF(C9="EUR",0.005,0.015) -> 0.015 | J28: FALSE | O28: 0 | P28: 0 | Q28: 0 | AA28: 2023-01-15 | AB28: 0 | AC28: 100000000 | AD28: -254794.5205 | AE28: -127397.2603 | AF28: 31 | AH28: 22 | AI28: 22 | AJ28: 2023-02-15 | AK28: 100000000 | AL28: 0 | AM28: -254794.5205 | AN28: 100000000 | AO28: 0 | AP28: -127397.2603 | AR28: 127397.2603 | AS28: 121266.9024 | AT28: 31
B29: Kamatfizetés gyakorisága | C29: Havi | J29: FALSE | O29: 0 | P29: 0 | Q29: 0 | AA29: 2023-02-15 | AB29: 0 | AC29: 100000000 | AD29: -230136.9863 | AE29: -115068.4932 | AF29: 28 | AH29: 23 | AI29: =IF(COUNT(AJ29)=1,AI28+1,"") -> 23 | AJ29: 2023-03-15 | AK29: 100000000 | AL29: 0 | AM29: -230136.9863 | AN29: 100000000 | AO29: 0 | AP29: -115068.4932 | AR29: 115068.4932 | AS29: 109367.3447 | AT29: 28
B30: COVID Közlemény 3.1 alapján és az azonos elszámolható költségekhez megítélt de minimis típusú állami támogatások | J30: FALSE | O30: 0 | P30: 0 | Q30: 0 | AA30: 2023-03-15 | AB30: 0 | AC30: 100000000 | AD30: -254794.5205 | AE30: -127397.2603 | AF30: 31 | AH30: 24 | AI30: 24 | AJ30: 2023-04-15 | AK30: 100000000 | AL30: 0 | AM30: -254794.5205 | AN30: 100000000 | AO30: 0 | AP30: -127397.2603 | AR30: 127397.2603 | AS30: 120903.9186 | AT30: 31
B31: Mezőgazdasági ágazatra megítélt támogatás teljes összege (EUR): | J31: FALSE | O31: 0 | P31: 0 | Q31: 0 | AA31: 2023-04-15 | AB31: 0 | AC31: 100000000 | AD31: -246575.3425 | AE31: -123287.6712 | AF31: 30 | AH31: 25 | AI31: 25 | AJ31: 2023-05-15 | AK31: 100000000 | AL31: 0 | AM31: -246575.3425 | AN31: 100000000 | AO31: 0 | AP31: -123287.6712 | AR31: 123287.6712 | AS31: 116828.5494 | AT31: 30
B32: Halászati, akvakultúra ágazatra megítélt támogatás teljes összeg (EUR): | J32: FALSE | O32: 0 | P32: 0 | Q32: 0 | AA32: 2023-05-15 | AB32: 0 | AC32: 100000000 | AD32: -254794.5205 | AE32: -127397.2603 | AF32: 31 | AH32: 26 | AI32: 26 | AJ32: 2023-06-15 | AK32: 100000000 | AL32: 0 | AM32: -254794.5205 | AN32: 100000000 | AO32: 0 | AP32: -127397.2603 | AR32: 127397.2603 | AS32: 120542.0213 | AT32: 31
B33: Egyéb ágazatra megítélt támogatás tejes összege (EUR): | J33: FALSE | O33: 0 | P33: 0 | Q33: 0 | AA33: 2023-06-15 | AB33: 0 | AC33: 100000000 | AD33: -246575.3425 | AE33: -123287.6712 | AF33: 30 | AH33: 27 | AI33: 27 | AJ33: 2023-07-15 | AK33: 100000000 | AL33: 0 | AM33: -246575.3425 | AN33: 100000000 | AO33: 0 | AP33: -123287.6712 | AR33: 123287.6712 | AS33: 116478.8507 | AT33: 30
J34: FALSE | O34: 0 | P34: 0 | Q34: 0 | AA34: 2023-07-15 | AB34: 0 | AC34: 100000000 | AD34: -254794.5205 | AE34: -127397.2603 | AF34: 31 | AH34: 28 | AI34: 28 | AJ34: 2023-08-15 | AK34: 100000000 | AL34: 0 | AM34: -254794.5205 | AN34: 100000000 | AO34: 0 | AP34: -127397.2603 | AR34: 127397.2603 | AS34: 120181.2073 | AT34: 31
J35: FALSE | O35: 0 | P35: 0 | Q35: 0 | AA35: 2023-08-15 | AB35: 0 | AC35: 100000000 | AD35: -254794.5205 | AE35: -127397.2603 | AF35: 31 | AH35: 29 | AI35: 29 | AJ35: 2023-09-15 | AK35: 100000000 | AL35: 0 | AM35: -254794.5205 | AN35: 100000000 | AO35: 0 | AP35: -127397.2603 | AR35: 127397.2603 | AS35: 120001.2055 | AT35: 31
J36: FALSE | O36: 0 | P36: 0 | Q36: 0 | AA36: 2023-09-15 | AB36: 0 | AC36: 100000000 | AD36: -246575.3425 | AE36: -123287.6712 | AF36: 30 | AH36: 30 | AI36: 30 | AJ36: 2023-10-15 | AK36: 100000000 | AL36: 0 | AM36: -246575.3425 | AN36: 100000000 | AO36: 0 | AP36: -123287.6712 | AR36: 123287.6712 | AS36: 115956.2645 | AT36: 30
J37: FALSE | O37: 0 | P37: 0 | Q37: 0 | AA37: 2023-10-15 | AB37: 0 | AC37: 100000000 | AD37: -254794.5205 | AE37: -127397.2603 | AF37: 31 | AH37: 31 | AI37: 31 | AJ37: 2023-11-15 | AK37: 100000000 | AL37: 0 | AM37: -254794.5205 | AN37: 100000000 | AO37: 0 | AP37: -127397.2603 | AR37: 127397.2603 | AS37: 119642.0103 | AT37: 31
J38: FALSE | O38: 0 | P38: 0 | Q38: 0 | AA38: 2023-11-15 | AB38: 0 | AC38: 100000000 | AD38: -246575.3425 | AE38: -123287.6712 | AF38: 30 | AH38: 32 | AI38: 32 | AJ38: 2023-12-15 | AK38: 100000000 | AL38: 0 | AM38: -246575.3425 | AN38: 100000000 | AO38: 0 | AP38: -123287.6712 | AR38: 123287.6712 | AS38: 115609.1768 | AT38: 30
J39: FALSE | O39: 0 | P39: 0 | Q39: 0 | AA39: 2023-12-15 | AB39: 0 | AC39: 100000000 | AD39: -254794.5205 | AE39: -127397.2603 | AF39: 31 | AH39: 33 | AI39: 33 | AJ39: 2024-01-15 | AK39: 100000000 | AL39: 0 | AM39: -254794.5205 | AN39: 100000000 | AO39: 0 | AP39: -127397.2603 | AR39: 127397.2603 | AS39: 119283.8902 | AT39: 31
J40: FALSE | O40: 0 | P40: 0 | Q40: 0 | AA40: 2024-01-15 | AB40: 0 | AC40: 100000000 | AD40: -254794.5205 | AE40: -127397.2603 | AF40: 31 | AH40: 34 | AI40: 34 | AJ40: 2024-02-15 | AK40: 100000000 | AL40: 0 | AM40: -254794.5205 | AN40: 100000000 | AO40: 0 | AP40: -127397.2603 | AR40: 127397.2603 | AS40: 119105.2323 | AT40: 31
J41: FALSE | O41: 0 | P41: 0 | Q41: 0 | AA41: 2024-02-15 | AB41: 0 | AC41: 100000000 | AD41: -238356.1644 | AE41: -119178.0822 | AF41: 29 | AH41: 35 | AI41: 35 | AJ41: 2024-03-15 | AK41: 100000000 | AL41: 0 | AM41: -238356.1644 | AN41: 100000000 | AO41: 0 | AP41: -119178.0822 | AR41: 119178.0822 | AS41: 111254.1426 | AT41: 29
J42: FALSE | O42: 0 | P42: 0 | Q42: 0 | AA42: 2024-03-15 | AB42: 0 | AC42: 100000000 | AD42: -254794.5205 | AE42: -127397.2603 | AF42: 31 | AH42: 36 | AI42: 36 | AJ42: 2024-04-15 | AK42: 100000000 | AL42: 0 | AM42: -254794.5205 | AN42: 100000000 | AO42: 0 | AP42: -127397.2603 | AR42: 127397.2603 | AS42: 118748.719 | AT42: 31
J43: FALSE | O43: 0 | P43: 0 | Q43: 0 | AA43: 2024-04-15 | AB43: 0 | AC43: 100000000 | AD43: -246575.3425 | AE43: -123287.6712 | AF43: 30 | AH43: 37 | AI43: 37 | AJ43: 2024-05-15 | AK43: 100000000 | AL43: 0 | AM43: -246575.3425 | AN43: 100000000 | AO43: 0 | AP43: -123287.6712 | AR43: 123287.6712 | AS43: 114745.9962 | AT43: =IFERROR(AJ43-AJ42,"") -> 30
J44: FALSE | O44: 0 | P44: 0 | Q44: 0 | AA44: 2024-05-15 | AB44: 0 | AC44: 100000000 | AD44: -254794.5205 | AE44: -127397.2603 | AF44: 31 | AH44: 38 | AI44: 38 | AJ44: 2024-06-15 | AK44: 100000000 | AL44: 0 | AM44: -254794.5205 | AN44: 100000000 | AO44: 0 | AP44: -127397.2603 | AR44: 127397.2603 | AS44: 118393.2728 | AT44: 31
J45: FALSE | N45: =IF(ISBLANK(L44),"",L44) ->  | O45: =IF(ISBLANK(L44),0,M44+O44) -> 0 | P45: 0 | Q45: 0 | AA45: 2024-06-15 | AB45: 0 | AC45: 100000000 | AD45: -246575.3425 | AE45: -123287.6712 | AF45: 30 | AH45: 39 | AI45: 39 | AJ45: 2024-07-15 | AK45: 100000000 | AL45: 0 | AM45: -246575.3425 | AN45: 100000000 | AO45: 0 | AP45: -123287.6712 | AR45: 123287.6712 | AS45: 114402.5312 | AT45: 30
J46: FALSE | O46: 0 | P46: 0 | Q46: 0 | AA46: 2024-07-15 | AB46: 0 | AC46: 100000000 | AD46: -254794.5205 | AE46: -127397.2603 | AF46: 31 | AH46: 40 | AI46: 40 | AJ46: 2024-08-15 | AK46: 100000000 | AL46: 0 | AM46: -254794.5205 | AN46: 100000000 | AO46: 0 | AP46: -127397.2603 | AR46: 127397.2603 | AS46: 118038.8905 | AT46: 31
J47: FALSE | N47: =IF(ISBLANK(L46),"",L46) ->  | O47: =IF(ISBLANK(L46),0,M46+O46) -> 0 | P47: =IF(AND(ISBLANK(L46),AH47<>1),0,IFERROR(-O47*piacikamat/365*(IF(ISBLANK(L47),$C$26,L47)-N47),"")) -> 0 | Q47: =IF(AND(ISBLANK(L46),AH47<>1),0,IFERROR(-O47*tenylegeskamat/365*(IF(ISBLANK(L47),$C$26,L47)-N47),"")) -> 0 | X47: =IFERROR(-W47*piacikamat/365*(T47-V47),"") ->  | Y47: =IFERROR(-W47*tenylegeskamat/365*(T47-V47),"") ->  | Z47: =IFERROR(T47-V47,"") ->  | AA47: 2024-08-15 | AB47: 0 | AC47: 100000000 | AD47: =IFERROR(-(AC47-AB47)*piacikamat/365*(AJ47-AA47),0) -> -254794.5205 | AE47: =IFERROR(-(AC47-AB47)*tenylegeskamat/365*(AJ47-AA47),0) -> -127397.2603 | AF47: =IFERROR(AJ47-AA47,"") -> 31 | AH47: 41 | AI47: =IF(COUNT(AJ47)=1,AI46+1,"") -> 41 | AJ47: =IF(OR(AJ46=$C$27,AJ46=""),"",IFERROR(IF(EDATE($C$26,(AH47-1)*12/$D$19)<=$C$27,EDATE($C$26,(AH47-1)*12/$D$19),$C$27),"")) -> 2024-09-15 | AK47: =+IF(COUNT(AK46)<>0,SUM(AK46:AL46)*(1-J47),"") -> 100000000 | AL47: 0 | AM47: -254794.5205 | AN47: =+IF(COUNT(AN46)<>0,SUM(AN46:AO46)*(1-J47),"") -> 100000000 | AO47: 0 | AP47: -127397.2603 | AR47: =IFERROR(MAX((ABS(AM47)-ABS(AP47)),0),"") -> 127397.2603 | AS47: =IFERROR(AR47/POWER(1+($C$11+1%)/$D$19,AI47-1)/(1+($C$11+1%)/365*($AJ$7-$C$24)),"") -> 117862.0974 | AT47: =IFERROR(AJ47-AJ46,"") -> 31
J48: FALSE | O48: 0 | P48: 0 | Q48: 0 | AA48: 2024-09-15 | AB48: 0 | AC48: 100000000 | AD48: -246575.3425 | AE48: -123287.6712 | AF48: 30 | AH48: 42 | AI48: 42 | AJ48: 2024-10-15 | AK48: 100000000 | AL48: 0 | AM48: -246575.3425 | AN48: 100000000 | AO48: 0 | AP48: -123287.6712 | AR48: 123287.6712 | AS48: 113889.2604 | AT48: 30
J49: FALSE | O49: 0 | P49: 0 | Q49: 0 | AA49: 2024-10-15 | AB49: 0 | AC49: 100000000 | AD49: -254794.5205 | AE49: -127397.2603 | AF49: 31 | AH49: 43 | AI49: 43 | AJ49: 2024-11-15 | AK49: 100000000 | AL49: 0 | AM49: -254794.5205 | AN49: 100000000 | AO49: 0 | AP49: -127397.2603 | AR49: 127397.2603 | AS49: 117509.3051 | AT49: 31
J50: FALSE | O50: 0 | P50: 0 | Q50: 0 | AA50: 2024-11-15 | AB50: 0 | AC50: 100000000 | AD50: -246575.3425 | AE50: -123287.6712 | AF50: 30 | AH50: 44 | AI50: 44 | AJ50: 2024-12-15 | AK50: 100000000 | AL50: 0 | AM50: -246575.3425 | AN50: 100000000 | AO50: 0 | AP50: -123287.6712 | AR50: 123287.6712 | AS50: 113548.3598 | AT50: 30
J51: FALSE | O51: 0 | P51: 0 | Q51: 0 | AA51: 2024-12-15 | AB51: 0 | AC51: 100000000 | AD51: -254794.5205 | AE51: -127397.2603 | AF51: 31 | AH51: 45 | AI51: 45 | AJ51: 2025-01-15 | AK51: 100000000 | AL51: 0 | AM51: -254794.5205 | AN51: 100000000 | AO51: 0 | AP51: -127397.2603 | AR51: 127397.2603 | AS51: 117157.5688 | AT51: 31
J52: FALSE | O52: 0 | P52: 0 | Q52: 0 | AA52: 2025-01-15 | AB52: 0 | AC52: 100000000 | AD52: -254794.5205 | AE52: -127397.2603 | AF52: 31 | AH52: 46 | AI52: 46 | AJ52: 2025-02-15 | AK52: 100000000 | AL52: 0 | AM52: -254794.5205 | AN52: 100000000 | AO52: 0 | AP52: -127397.2603 | AR52: 127397.2603 | AS52: 116982.0956 | AT52: 31
J53: FALSE | O53: 0 | P53: 0 | Q53: 0 | AA53: 2025-02-15 | AB53: 0 | AC53: 100000000 | AD53: -230136.9863 | AE53: -115068.4932 | AF53: 28 | AH53: 47 | AI53: 47 | AJ53: 2025-03-15 | AK53: 100000000 | AL53: 0 | AM53: -230136.9863 | AN53: 100000000 | AO53: 0 | AP53: -115068.4932 | AR53: 115068.4932 | AS53: 105502.9932 | AT53: 28
J54: FALSE | O54: 0 | P54: 0 | Q54: 0 | AA54: 2025-03-15 | AB54: 0 | AC54: 100000000 | AD54: -254794.5205 | AE54: -127397.2603 | AF54: 31 | AH54: 48 | AI54: 48 | AJ54: 2025-04-15 | AK54: 100000000 | AL54: 0 | AM54: -254794.5205 | AN54: 100000000 | AO54: 0 | AP54: -127397.2603 | AR54: 127397.2603 | AS54: 116631.9374 | AT54: 31
J55: FALSE | O55: 0 | P55: 0 | Q55: 0 | AA55: 2025-04-15 | AB55: 0 | AC55: 100000000 | AD55: -246575.3425 | AE55: -123287.6712 | AF55: 30 | AH55: 49 | AI55: 49 | AJ55: 2025-05-15 | AK55: 100000000 | AL55: 0 | AM55: -246575.3425 | AN55: 100000000 | AO55: 0 | AP55: -123287.6712 | AR55: 123287.6712 | AS55: 112700.566 | AT55: 30
J56: FALSE | O56: 0 | P56: 0 | Q56: 0 | AA56: 2025-05-15 | AB56: 0 | AC56: 100000000 | AD56: -254794.5205 | AE56: -127397.2603 | AF56: 31 | AH56: 50 | AI56: 50 | AJ56: 2025-06-15 | AK56: 100000000 | AL56: 0 | AM56: -254794.5205 | AN56: 100000000 | AO56: 0 | AP56: -127397.2603 | AR56: 127397.2603 | AS56: 116282.8273 | AT56: 31
J57: FALSE | O57: 0 | P57: 0 | Q57: 0 | AA57: 2025-06-15 | AB57: 0 | AC57: 100000000 | AD57: -246575.3425 | AE57: -123287.6712 | AF57: 30 | AH57: 51 | AI57: 51 | AJ57: 2025-07-15 | AK57: 100000000 | AL57: 0 | AM57: -246575.3425 | AN57: 100000000 | AO57: 0 | AP57: -123287.6712 | AR57: 123287.6712 | AS57: 112363.2235 | AT57: 30
J58: FALSE | O58: 0 | P58: 0 | Q58: 0 | AA58: 2025-07-15 | AB58: 0 | AC58: 100000000 | AD58: -254794.5205 | AE58: -127397.2603 | AF58: 31 | AH58: 52 | AI58: 52 | AJ58: 2025-08-15 | AK58: 100000000 | AL58: 0 | AM58: -254794.5205 | AN58: 100000000 | AO58: 0 | AP58: -127397.2603 | AR58: 127397.2603 | AS58: 115934.7621 | AT58: 31
J59: FALSE | O59: 0 | P59: 0 | Q59: 0 | AA59: 2025-08-15 | AB59: 0 | AC59: 100000000 | AD59: -254794.5205 | AE59: -127397.2603 | AF59: 31 | AH59: 53 | AI59: 53 | AJ59: 2025-09-15 | AK59: 100000000 | AL59: 0 | AM59: -254794.5205 | AN59: 100000000 | AO59: 0 | AP59: -127397.2603 | AR59: 127397.2603 | AS59: 115761.1205 | AT59: 31
J60: FALSE | O60: 0 | P60: 0 | Q60: 0 | AA60: 2025-09-15 | AB60: 0 | AC60: 100000000 | AD60: -246575.3425 | AE60: -123287.6712 | AF60: 30 | AH60: 54 | AI60: 54 | AJ60: 2025-10-15 | AK60: 100000000 | AL60: 0 | AM60: -246575.3425 | AN60: 100000000 | AO60: 0 | AP60: -123287.6712 | AR60: 123287.6712 | AS60: 111859.1021 | AT60: 30
J61: FALSE | O61: 0 | P61: 0 | Q61: 0 | AA61: 2025-10-15 | AB61: 0 | AC61: 100000000 | AD61: -254794.5205 | AE61: -127397.2603 | AF61: 31 | AH61: 55 | AI61: 55 | AJ61: 2025-11-15 | AK61: 100000000 | AL61: 0 | AM61: -254794.5205 | AN61: 100000000 | AO61: 0 | AP61: -127397.2603 | AR61: 127397.2603 | AS61: 115414.6169 | AT61: 31
J62: FALSE | O62: 0 | P62: 0 | Q62: 0 | AA62: 2025-11-15 | AB62: 0 | AC62: 100000000 | AD62: -246575.3425 | AE62: -123287.6712 | AF62: 30 | AH62: 56 | AI62: 56 | AJ62: 2025-12-15 | AK62: 100000000 | AL62: 0 | AM62: -246575.3425 | AN62: 100000000 | AO62: 0 | AP62: -123287.6712 | AR62: 123287.6712 | AS62: 111524.2783 | AT62: 30
J63: FALSE | O63: 0 | P63: 0 | Q63: 0 | AA63: 2025-12-15 | AB63: 0 | AC63: 100000000 | AD63: -254794.5205 | AE63: -127397.2603 | AF63: 31 | AH63: 57 | AI63: 57 | AJ63: 2026-01-15 | AK63: 100000000 | AL63: 0 | AM63: -254794.5205 | AN63: 100000000 | AO63: 0 | AP63: -127397.2603 | AR63: 127397.2603 | AS63: 115069.1506 | AT63: 31
J64: FALSE | O64: 0 | P64: 0 | Q64: 0 | AA64: 2026-01-15 | AB64: 0 | AC64: 100000000 | AD64: -254794.5205 | AE64: -127397.2603 | AF64: 31 | AH64: 58 | AI64: 58 | AJ64: 2026-02-15 | AK64: 100000000 | AL64: 0 | AM64: -254794.5205 | AN64: 100000000 | AO64: 0 | AP64: -127397.2603 | AR64: 127397.2603 | AS64: 114896.8054 | AT64: 31
J65: FALSE | O65: 0 | P65: 0 | Q65: 0 | AA65: 2026-02-15 | AB65: 0 | AC65: 100000000 | AD65: -230136.9863 | AE65: -115068.4932 | AF65: 28 | AH65: 59 | AI65: 59 | AJ65: 2026-03-15 | AK65: 100000000 | AL65: 0 | AM65: -230136.9863 | AN65: 100000000 | AO65: 0 | AP65: -115068.4932 | AR65: 115068.4932 | AS65: 103622.3262 | AT65: 28
J66: FALSE | O66: 0 | P66: 0 | Q66: 0 | AA66: 2026-03-15 | AB66: 0 | AC66: 100000000 | AD66: -254794.5205 | AE66: -127397.2603 | AF66: 31 | AH66: 60 | AI66: 60 | AJ66: 2026-04-15 | AK66: 100000000 | AL66: 0 | AM66: -254794.5205 | AN66: 100000000 | AO66: 0 | AP66: -127397.2603 | AR66: 127397.2603 | AS66: 114552.8889 | AT66: 31
J67: FALSE | O67: 0 | P67: 0 | Q67: 0 | AA67: 2026-04-15 | AB67: 0 | AC67: 100000000 | AD67: -246575.3425 | AE67: -123287.6712 | AF67: 30 | AH67: 61 | AI67: 61 | AJ67: 2026-05-15 | AK67: 100000000 | AL67: 0 | AM67: -246575.3425 | AN67: 100000000 | AO67: 0 | AP67: -123287.6712 | AR67: 123287.6712 | AS67: 110691.5971 | AT67: 30
J68: FALSE | O68: 0 | P68: 0 | Q68: 0 | AA68: 2026-05-15 | AB68: 0 | AC68: 100000000 | AD68: -254794.5205 | AE68: -127397.2603 | AF68: 31 | AH68: 62 | AI68: 62 | AJ68: 2026-06-15 | AK68: 100000000 | AL68: 0 | AM68: -254794.5205 | AN68: 100000000 | AO68: 0 | AP68: -127397.2603 | AR68: 127397.2603 | AS68: 114210.002 | AT68: 31
J69: FALSE | O69: 0 | P69: 0 | Q69: 0 | AA69: 2026-06-15 | AB69: 0 | AC69: 100000000 | AD69: -246575.3425 | AE69: -123287.6712 | AF69: 30 | AH69: 63 | AI69: 63 | AJ69: 2026-07-15 | AK69: 100000000 | AL69: 0 | AM69: -246575.3425 | AN69: 100000000 | AO69: 0 | AP69: -123287.6712 | AR69: 123287.6712 | AS69: 110360.268 | AT69: 30
J70: FALSE | O70: 0 | P70: 0 | Q70: 0 | AA70: 2026-07-15 | AB70: 0 | AC70: 100000000 | AD70: -254794.5205 | AE70: -127397.2603 | AF70: 31 | AH70: 64 | AI70: 64 | AJ70: 2026-08-15 | AK70: 100000000 | AL70: 0 | AM70: -254794.5205 | AN70: 100000000 | AO70: 0 | AP70: -127397.2603 | AR70: 127397.2603 | AS70: 113868.1413 | AT70: 31
J71: FALSE | O71: 0 | P71: 0 | Q71: 0 | R71: =IFERROR(IF(ISBLANK(L71),$C$26,L71)-N71,"") ->  | AA71: 2026-08-15 | AB71: 0 | AC71: 100000000 | AD71: -254794.5205 | AE71: -127397.2603 | AF71: 31 | AH71: 65 | AI71: 65 | AJ71: 2026-09-15 | AK71: 100000000 | AL71: 0 | AM71: -254794.5205 | AN71: 100000000 | AO71: 0 | AP71: -127397.2603 | AR71: 127397.2603 | AS71: 113697.595 | AT71: 31
J72: =AI72>$D$15 -> FALSE | O72: 0 | P72: 0 | Q72: 0 | V72: =IF(ISNA(MAX(T71,INDEX(AJ$6:AJ$126,MATCH(T72-1,AJ$6:AJ$126,1)))),"",MAX(T71,INDEX(AJ$6:AJ$126,MATCH(T72-1,AJ$6:AJ$126,1)))) ->  | W72: =IF(ISNA(MIN(IF(OR(ISBLANK(W71),W71=""),INDEX(AK$7:AK$126,MATCH(T72,AJ$7:AJ$126,1)),W71-U71),INDEX(AK$7:AK$126,MATCH(T72,AJ$7:AJ$126,1)))),"",MIN(IF(OR(ISBLANK(W71),W71=""),INDEX(AK$7:AK$126,MATCH(T72,AJ$7:AJ$126,1)),W71-U71),INDEX(AK$7:AK$126,MATCH(T72,AJ$7:AJ$126,1)))) ->  | AA72: =MAX(AJ71,IF(ISNA(INDEX(T$7:T$126,MATCH(AJ72,T$7:T$126,1))),0,INDEX(T$7:T$126,MATCH(AJ72,T$7:T$126,1)))) -> 2026-09-15 | AB72: =IF(ISNA(INDEX(U$7:U$126,MATCH(AJ72,T$7:T$126,1))),0,INDEX(U$7:U$126,MATCH(AJ72,T$7:T$126,1))) -> 0 | AC72: =IF(ISNA(INDEX(W$7:W$126,MATCH(AJ72,T$7:T$126,1))),AK72,INDEX(W$7:W$126,MATCH(AJ72,T$7:T$126,1))) -> 100000000 | AD72: -246575.3425 | AE72: -123287.6712 | AF72: 30 | AH72: 66 | AI72: 66 | AJ72: 2026-10-15 | AK72: 100000000 | AL72: =-SUMIFS(U$7:U$126,T$7:T$126,">"&AJ71,T$7:T$126,"<="&AJ72) -> 0 | AM72: -246575.3425 | AN72: 100000000 | AO72: =-SUMIFS(U$7:U$126,T$7:T$126,">"&AJ71,T$7:T$126,"<="&AJ72) -> 0 | AP72: -123287.6712 | AR72: 123287.6712 | AS72: 109865.1329 | AT72: 30
J73: FALSE | O73: 0 | P73: 0 | Q73: 0 | AA73: 2026-10-15 | AB73: 0 | AC73: 100000000 | AD73: -254794.5205 | AE73: -127397.2603 | AF73: 31 | AH73: 67 | AI73: 67 | AJ73: 2026-11-15 | AK73: 100000000 | AL73: 0 | AM73: =SUMIFS(X$7:X$126,T$7:T$126,">"&AJ72,T$7:T$126,"<="&AJ73)+AD73 -> -254794.5205 | AN73: 100000000 | AO73: 0 | AP73: =SUMIFS(Y$7:Y$126,T$7:T$126,">"&AJ72,T$7:T$126,"<="&AJ73)+AE73 -> -127397.2603 | AR73: 127397.2603 | AS73: 113357.2681 | AT73: 31
J74: FALSE | O74: 0 | P74: 0 | Q74: 0 | AA74: 2026-11-15 | AB74: 0 | AC74: 100000000 | AD74: -246575.3425 | AE74: -123287.6712 | AF74: 30 | AH74: 68 | AI74: 68 | AJ74: 2026-12-15 | AK74: 100000000 | AL74: 0 | AM74: -246575.3425 | AN74: 100000000 | AO74: 0 | AP74: -123287.6712 | AR74: 123287.6712 | AS74: 109536.2776 | AT74: 30
J75: FALSE | O75: 0 | P75: 0 | Q75: 0 | AA75: 2026-12-15 | AB75: 0 | AC75: 100000000 | AD75: -254794.5205 | AE75: -127397.2603 | AF75: 31 | AH75: 69 | AI75: 69 | AJ75: 2027-01-15 | AK75: 100000000 | AL75: 0 | AM75: -254794.5205 | AN75: 100000000 | AO75: 0 | AP75: -127397.2603 | AR75: 127397.2603 | AS75: 113017.9599 | AT75: 31
J76: FALSE | O76: 0 | P76: 0 | Q76: 0 | AA76: 2027-01-15 | AB76: 0 | AC76: 100000000 | AD76: -254794.5205 | AE76: -127397.2603 | AF76: 31 | AH76: 70 | AI76: 70 | AJ76: 2027-02-15 | AK76: 100000000 | AL76: 0 | AM76: -254794.5205 | AN76: 100000000 | AO76: 0 | AP76: -127397.2603 | AR76: 127397.2603 | AS76: 112848.6869 | AT76: 31
J77: FALSE | O77: 0 | P77: 0 | Q77: 0 | AA77: 2027-02-15 | AB77: 0 | AC77: 100000000 | AD77: -230136.9863 | AE77: -115068.4932 | AF77: 28 | AH77: 71 | AI77: 71 | AJ77: 2027-03-15 | AK77: 100000000 | AL77: 0 | AM77: -230136.9863 | AN77: 100000000 | AO77: 0 | AP77: -115068.4932 | AR77: 115068.4932 | AS77: 101775.1835 | AT77: 28
J78: FALSE | O78: 0 | P78: 0 | Q78: 0 | AA78: 2027-03-15 | AB78: 0 | AC78: 100000000 | AD78: -254794.5205 | AE78: -127397.2603 | AF78: 31 | AH78: 72 | AI78: 72 | AJ78: 2027-04-15 | AK78: 100000000 | AL78: 0 | AM78: -254794.5205 | AN78: 100000000 | AO78: 0 | AP78: -127397.2603 | AR78: 127397.2603 | AS78: 112510.901 | AT78: 31
J79: FALSE | O79: 0 | P79: 0 | Q79: 0 | AA79: 2027-04-15 | AB79: 0 | AC79: 100000000 | AD79: -246575.3425 | AE79: -123287.6712 | AF79: 30 | AH79: 73 | AI79: 73 | AJ79: 2027-05-15 | AK79: 100000000 | AL79: 0 | AM79: -246575.3425 | AN79: 100000000 | AO79: 0 | AP79: -123287.6712 | AR79: 123287.6712 | AS79: 108718.4395 | AT79: 30
J80: FALSE | O80: 0 | P80: 0 | Q80: 0 | AA80: 2027-05-15 | AB80: 0 | AC80: 100000000 | AD80: -254794.5205 | AE80: -127397.2603 | AF80: 31 | AH80: 74 | AI80: 74 | AJ80: 2027-06-15 | AK80: 100000000 | AL80: 0 | AM80: -254794.5205 | AN80: 100000000 | AO80: 0 | AP80: -127397.2603 | AR80: 127397.2603 | AS80: 112174.1263 | AT80: 31
J81: FALSE | O81: 0 | P81: 0 | Q81: 0 | AA81: 2027-06-15 | AB81: 0 | AC81: 100000000 | AD81: -246575.3425 | AE81: -123287.6712 | AF81: 30 | AH81: 75 | AI81: 75 | AJ81: 2027-07-15 | AK81: 100000000 | AL81: 0 | AM81: -246575.3425 | AN81: 100000000 | AO81: 0 | AP81: -123287.6712 | AR81: 123287.6712 | AS81: 108393.0165 | AT81: 30
J82: FALSE | O82: 0 | P82: 0 | Q82: 0 | AA82: 2027-07-15 | AB82: 0 | AC82: 100000000 | AD82: -254794.5205 | AE82: -127397.2603 | AF82: 31 | AH82: 76 | AI82: 76 | AJ82: 2027-08-15 | AK82: 100000000 | AL82: 0 | AM82: -254794.5205 | AN82: 100000000 | AO82: 0 | AP82: -127397.2603 | AR82: 127397.2603 | AS82: 111838.3596 | AT82: 31
J83: FALSE | O83: 0 | P83: 0 | Q83: 0 | AA83: 2027-08-15 | AB83: 0 | AC83: 100000000 | AD83: -254794.5205 | AE83: -127397.2603 | AF83: 31 | AH83: 77 | AI83: 77 | AJ83: 2027-09-15 | AK83: 100000000 | AL83: 0 | AM83: -254794.5205 | AN83: 100000000 | AO83: 0 | AP83: -127397.2603 | AR83: 127397.2603 | AS83: 111670.8533 | AT83: 31
J84: FALSE | O84: 0 | P84: 0 | Q84: 0 | AA84: 2027-09-15 | AB84: 0 | AC84: 100000000 | AD84: -246575.3425 | AE84: -123287.6712 | AF84: 30 | AH84: 78 | AI84: 78 | AJ84: 2027-10-15 | AK84: 100000000 | AL84: 0 | AM84: -246575.3425 | AN84: 100000000 | AO84: 0 | AP84: -123287.6712 | AR84: 123287.6712 | AS84: 107906.7076 | AT84: 30
J85: FALSE | O85: 0 | P85: 0 | Q85: 0 | AA85: 2027-10-15 | AB85: 0 | AC85: 100000000 | AD85: -254794.5205 | AE85: -127397.2603 | AF85: 31 | AH85: 79 | AI85: 79 | AJ85: 2027-11-15 | AK85: 100000000 | AL85: 0 | AM85: -254794.5205 | AN85: 100000000 | AO85: 0 | AP85: -127397.2603 | AR85: 127397.2603 | AS85: 111336.593 | AT85: 31
J86: FALSE | O86: 0 | P86: 0 | Q86: 0 | AA86: 2027-11-15 | AB86: 0 | AC86: 100000000 | AD86: -246575.3425 | AE86: -123287.6712 | AF86: 30 | AH86: 80 | AI86: 80 | AJ86: 2027-12-15 | AK86: 100000000 | AL86: 0 | AM86: -246575.3425 | AN86: 100000000 | AO86: 0 | AP86: -123287.6712 | AR86: 123287.6712 | AS86: 107583.7144 | AT86: 30
J87: FALSE | O87: 0 | P87: 0 | Q87: 0 | AA87: 2027-12-15 | AB87: 0 | AC87: 100000000 | AD87: -254794.5205 | AE87: -127397.2603 | AF87: 31 | AH87: 81 | AI87: 81 | AJ87: 2028-01-15 | AK87: 100000000 | AL87: 0 | AM87: -254794.5205 | AN87: 100000000 | AO87: 0 | AP87: -127397.2603 | AR87: 127397.2603 | AS87: 111003.3332 | AT87: 31
J88: FALSE | O88: 0 | P88: 0 | Q88: 0 | AA88: 2028-01-15 | AB88: 0 | AC88: 100000000 | AD88: -254794.5205 | AE88: -127397.2603 | AF88: 31 | AH88: 82 | AI88: 82 | AJ88: 2028-02-15 | AK88: 100000000 | AL88: 0 | AM88: -254794.5205 | AN88: 100000000 | AO88: 0 | AP88: -127397.2603 | AR88: 127397.2603 | AS88: 110837.0776 | AT88: 31
J89: FALSE | O89: 0 | P89: 0 | Q89: 0 | AA89: 2028-02-15 | AB89: 0 | AC89: 100000000 | AD89: -238356.1644 | AE89: -119178.0822 | AF89: 29 | AH89: 83 | AI89: 83 | AJ89: 2028-03-15 | AK89: 100000000 | AL89: 0 | AM89: -238356.1644 | AN89: 100000000 | AO89: 0 | AP89: -119178.0822 | AR89: 119178.0822 | AS89: 103531.0019 | AT89: 29
J90: FALSE | O90: 0 | P90: 0 | Q90: 0 | AA90: 2028-03-15 | AB90: 0 | AC90: 100000000 | AD90: -254794.5205 | AE90: -127397.2603 | AF90: 31 | AH90: 84 | AI90: 84 | AJ90: 2028-04-15 | AK90: 100000000 | AL90: 0 | AM90: -254794.5205 | AN90: 100000000 | AO90: 0 | AP90: -127397.2603 | AR90: 127397.2603 | AS90: 110505.313 | AT90: 31
J91: FALSE | O91: 0 | P91: 0 | Q91: 0 | AA91: 2028-04-15 | AB91: 0 | AC91: 100000000 | AD91: -246575.3425 | AE91: -123287.6712 | AF91: 30 | AH91: 85 | AI91: 85 | AJ91: 2028-05-15 | AK91: 100000000 | AL91: 0 | AM91: -246575.3425 | AN91: 100000000 | AO91: 0 | AP91: -123287.6712 | AR91: 123287.6712 | AS91: 106780.4548 | AT91: 30
J92: FALSE | O92: 0 | P92: 0 | Q92: 0 | AA92: 2028-05-15 | AB92: 0 | AC92: 100000000 | AD92: -254794.5205 | AE92: -127397.2603 | AF92: 31 | AH92: 86 | AI92: 86 | AJ92: 2028-06-15 | AK92: 100000000 | AL92: 0 | AM92: -254794.5205 | AN92: 100000000 | AO92: 0 | AP92: -127397.2603 | AR92: 127397.2603 | AS92: 110174.5415 | AT92: 31
J93: FALSE | O93: 0 | P93: 0 | Q93: 0 | AA93: 2028-06-15 | AB93: 0 | AC93: 100000000 | AD93: -246575.3425 | AE93: -123287.6712 | AF93: 30 | AH93: 87 | AI93: 87 | AJ93: 2028-07-15 | AK93: 100000000 | AL93: 0 | AM93: -246575.3425 | AN93: 100000000 | AO93: 0 | AP93: -123287.6712 | AR93: 123287.6712 | AS93: 106460.8328 | AT93: 30
J94: FALSE | O94: 0 | P94: 0 | Q94: 0 | AA94: 2028-07-15 | AB94: 0 | AC94: 100000000 | AD94: -254794.5205 | AE94: -127397.2603 | AF94: 31 | AH94: 88 | AI94: 88 | AJ94: 2028-08-15 | AK94: 100000000 | AL94: 0 | AM94: -254794.5205 | AN94: 100000000 | AO94: 0 | AP94: -127397.2603 | AR94: 127397.2603 | AS94: 109844.7601 | AT94: 31
J95: FALSE | O95: 0 | P95: 0 | Q95: 0 | AA95: 2028-08-15 | AB95: 0 | AC95: 100000000 | AD95: -254794.5205 | AE95: -127397.2603 | AF95: 31 | AH95: 89 | AI95: 89 | AJ95: 2028-09-15 | AK95: 100000000 | AL95: 0 | AM95: -254794.5205 | AN95: 100000000 | AO95: 0 | AP95: -127397.2603 | AR95: 127397.2603 | AS95: 109680.2397 | AT95: 31
J96: FALSE | O96: 0 | P96: 0 | Q96: 0 | AA96: 2028-09-15 | AB96: 0 | AC96: 100000000 | AD96: -246575.3425 | AE96: -123287.6712 | AF96: 30 | AH96: 90 | AI96: 90 | AJ96: 2028-10-15 | AK96: 100000000 | AL96: 0 | AM96: -246575.3425 | AN96: 100000000 | AO96: 0 | AP96: -123287.6712 | AR96: 123287.6712 | AS96: 105983.1927 | AT96: 30
J97: FALSE | O97: 0 | P97: 0 | Q97: 0 | AA97: 2028-10-15 | AB97: 0 | AC97: 100000000 | AD97: -254794.5205 | AE97: -127397.2603 | AF97: 31 | AH97: 91 | AI97: 91 | AJ97: 2028-11-15 | AK97: 100000000 | AL97: 0 | AM97: -254794.5205 | AN97: 100000000 | AO97: 0 | AP97: -127397.2603 | AR97: 127397.2603 | AS97: 109351.9379 | AT97: 31
J98: FALSE | O98: 0 | P98: 0 | Q98: 0 | AA98: 2028-11-15 | AB98: 0 | AC98: 100000000 | AD98: -246575.3425 | AE98: -123287.6712 | AF98: 30 | AH98: 92 | AI98: 92 | AJ98: 2028-12-15 | AK98: 100000000 | AL98: 0 | AM98: -246575.3425 | AN98: 100000000 | AO98: 0 | AP98: -123287.6712 | AR98: 123287.6712 | AS98: 105665.9571 | AT98: 30
J99: FALSE | O99: 0 | P99: 0 | Q99: 0 | AA99: 2028-12-15 | AB99: 0 | AC99: 100000000 | AD99: -254794.5205 | AE99: -127397.2603 | AF99: 31 | AH99: 93 | AI99: 93 | AJ99: 2029-01-15 | AK99: 100000000 | AL99: 0 | AM99: -254794.5205 | AN99: 100000000 | AO99: 0 | AP99: -127397.2603 | AR99: 127397.2603 | AS99: 109024.6187 | AT99: 31
J100: FALSE | O100: 0 | P100: 0 | Q100: 0 | AA100: 2029-01-15 | AB100: 0 | AC100: 100000000 | AD100: -254794.5205 | AE100: -127397.2603 | AF100: 31 | AH100: 94 | AI100: 94 | AJ100: 2029-02-15 | AK100: 100000000 | AL100: 0 | AM100: -254794.5205 | AN100: 100000000 | AO100: 0 | AP100: -127397.2603 | AR100: 127397.2603 | AS100: 108861.3267 | AT100: 31
J101: FALSE | O101: 0 | P101: 0 | Q101: 0 | AA101: 2029-02-15 | AB101: 0 | AC101: 100000000 | AD101: -230136.9863 | AE101: -115068.4932 | AF101: 28 | AH101: 95 | AI101: 95 | AJ101: 2029-03-15 | AK101: 100000000 | AL101: 0 | AM101: -230136.9863 | AN101: 100000000 | AO101: 0 | AP101: -115068.4932 | AR101: 115068.4932 | AS101: 98179.09098 | AT101: 28
J102: FALSE | O102: 0 | P102: 0 | Q102: 0 | AA102: 2029-03-15 | AB102: 0 | AC102: 100000000 | AD102: -254794.5205 | AE102: -127397.2603 | AF102: 31 | AH102: 96 | AI102: 96 | AJ102: 2029-04-15 | AK102: 100000000 | AL102: 0 | AM102: -254794.5205 | AN102: 100000000 | AO102: 0 | AP102: -127397.2603 | AR102: 127397.2603 | AS102: 108535.4761 | AT102: 31
J103: FALSE | O103: 0 | P103: 0 | Q103: 0 | AA103: 2029-04-15 | AB103: 0 | AC103: 100000000 | AD103: -246575.3425 | AE103: -123287.6712 | AF103: 30 | AH103: 97 | AI103: 97 | AJ103: 2029-05-15 | AK103: 100000000 | AL103: 0 | AM103: -246575.3425 | AN103: 100000000 | AO103: 0 | AP103: -123287.6712 | AR103: 123287.6712 | AS103: 104877.0162 | AT103: 30
J104: FALSE | O104: 0 | P104: 0 | Q104: 0 | AA104: 2029-05-15 | AB104: 0 | AC104: 100000000 | AD104: -254794.5205 | AE104: -127397.2603 | AF104: 31 | AH104: 98 | AI104: 98 | AJ104: 2029-06-15 | AK104: 100000000 | AL104: 0 | AM104: -254794.5205 | AN104: 100000000 | AO104: 0 | AP104: -127397.2603 | AR104: 127397.2603 | AS104: 108210.6008 | AT104: 31
J105: FALSE | O105: 0 | P105: 0 | Q105: 0 | AA105: 2029-06-15 | AB105: 0 | AC105: 100000000 | AD105: -246575.3425 | AE105: -123287.6712 | AF105: 30 | AH105: 99 | AI105: 99 | AJ105: 2029-07-15 | AK105: 100000000 | AL105: 0 | AM105: -246575.3425 | AN105: 100000000 | AO105: 0 | AP105: -123287.6712 | AR105: 123287.6712 | AS105: 104563.0916 | AT105: 30
J106: FALSE | O106: 0 | P106: 0 | Q106: 0 | AA106: 2029-07-15 | AB106: 0 | AC106: 100000000 | AD106: -254794.5205 | AE106: -127397.2603 | AF106: 31 | AH106: 100 | AI106: 100 | AJ106: 2029-08-15 | AK106: 100000000 | AL106: 0 | AM106: -254794.5205 | AN106: 100000000 | AO106: 0 | AP106: -127397.2603 | AR106: 127397.2603 | AS106: 107886.698 | AT106: 31
J107: FALSE | O107: 0 | P107: 0 | Q107: 0 | AA107: 2029-08-15 | AB107: 0 | AC107: 100000000 | AD107: -254794.5205 | AE107: -127397.2603 | AF107: 31 | AH107: 101 | AI107: 101 | AJ107: 2029-09-15 | AK107: 100000000 | AL107: 0 | AM107: -254794.5205 | AN107: 100000000 | AO107: 0 | AP107: -127397.2603 | AR107: 127397.2603 | AS107: 107725.1103 | AT107: 31
J108: FALSE | O108: 0 | P108: 0 | Q108: 0 | AA108: 2029-09-15 | AB108: 0 | AC108: 100000000 | AD108: -246575.3425 | AE108: -123287.6712 | AF108: 30 | AH108: 102 | AI108: 102 | AJ108: 2029-10-15 | AK108: 100000000 | AL108: 0 | AM108: -246575.3425 | AN108: 100000000 | AO108: 0 | AP108: -123287.6712 | AR108: 123287.6712 | AS108: 104093.9658 | AT108: 30
J109: FALSE | O109: 0 | P109: 0 | Q109: 0 | AA109: 2029-10-15 | AB109: 0 | AC109: 100000000 | AD109: -254794.5205 | AE109: -127397.2603 | AF109: 31 | AH109: 103 | AI109: 103 | AJ109: 2029-11-15 | AK109: 100000000 | AL109: 0 | AM109: -254794.5205 | AN109: 100000000 | AO109: 0 | AP109: -127397.2603 | AR109: 127397.2603 | AS109: 107402.6607 | AT109: 31
J110: FALSE | O110: 0 | P110: 0 | Q110: 0 | AA110: 2029-11-15 | AB110: 0 | AC110: 100000000 | AD110: -246575.3425 | AE110: -123287.6712 | AF110: 30 | AH110: 104 | AI110: 104 | AJ110: 2029-12-15 | AK110: 100000000 | AL110: 0 | AM110: -246575.3425 | AN110: 100000000 | AO110: 0 | AP110: -123287.6712 | AR110: 123287.6712 | AS110: 103782.3851 | AT110: 30
J111: FALSE | N111: =IF(ISBLANK(L110),"",L110) ->  | O111: =IF(ISBLANK(L110),0,M110+O110) -> 0 | P111: =IF(AND(ISBLANK(L110),AH111<>1),0,IFERROR(-O111*piacikamat/365*(IF(ISBLANK(L111),$C$26,L111)-N111),"")) -> 0 | Q111: =IF(AND(ISBLANK(L110),AH111<>1),0,IFERROR(-O111*tenylegeskamat/365*(IF(ISBLANK(L111),$C$26,L111)-N111),"")) -> 0 | X111: =IFERROR(-W111*piacikamat/365*(T111-V111),"") ->  | Y111: =IFERROR(-W111*tenylegeskamat/365*(T111-V111),"") ->  | Z111: =IFERROR(T111-V111,"") ->  | AA111: 2029-12-15 | AB111: 0 | AC111: 100000000 | AD111: =IFERROR(-(AC111-AB111)*piacikamat/365*(AJ111-AA111),0) -> -254794.5205 | AE111: =IFERROR(-(AC111-AB111)*tenylegeskamat/365*(AJ111-AA111),0) -> -127397.2603 | AF111: =IFERROR(AJ111-AA111,"") -> 31 | AH111: 105 | AI111: =IF(COUNT(AJ111)=1,AI110+1,"") -> 105 | AJ111: =IF(OR(AJ110=$C$27,AJ110=""),"",IFERROR(IF(EDATE($C$26,(AH111-1)*12/$D$19)<=$C$27,EDATE($C$26,(AH111-1)*12/$D$19),$C$27),"")) -> 2030-01-15 | AK111: =+IF(COUNT(AK110)<>0,SUM(AK110:AL110)*(1-J111),"") -> 100000000 | AL111: 0 | AM111: -254794.5205 | AN111: =+IF(COUNT(AN110)<>0,SUM(AN110:AO110)*(1-J111),"") -> 100000000 | AO111: 0 | AP111: -127397.2603 | AR111: =IFERROR(MAX((ABS(AM111)-ABS(AP111)),0),"") -> 127397.2603 | AS111: =IFERROR(AR111/POWER(1+($C$11+1%)/$D$19,AI111-1)/(1+($C$11+1%)/365*($AJ$7-$C$24)),"") -> 107081.1762 | AT111: =IFERROR(AJ111-AJ110,"") -> 31
J112: FALSE | O112: 0 | P112: 0 | Q112: 0 | AA112: 2030-01-15 | AB112: 0 | AC112: 100000000 | AD112: -254794.5205 | AE112: -127397.2603 | AF112: 31 | AH112: 106 | AI112: 106 | AJ112: 2030-02-15 | AK112: 100000000 | AL112: 0 | AM112: -254794.5205 | AN112: 100000000 | AO112: 0 | AP112: -127397.2603 | AR112: 127397.2603 | AS112: 106920.795 | AT112: 31
J113: FALSE | O113: 0 | P113: 0 | Q113: 0 | AA113: 2030-02-15 | AB113: 0 | AC113: 100000000 | AD113: -230136.9863 | AE113: -115068.4932 | AF113: 28 | AH113: 107 | AI113: 107 | AJ113: 2030-03-15 | AK113: 100000000 | AL113: 0 | AM113: -230136.9863 | AN113: 100000000 | AO113: 0 | AP113: -115068.4932 | AR113: 115068.4932 | AS113: 96428.97784 | AT113: 28
J114: FALSE | O114: 0 | P114: 0 | Q114: 0 | AA114: 2030-03-15 | AB114: 0 | AC114: 100000000 | AD114: -254794.5205 | AE114: -127397.2603 | AF114: 31 | AH114: 108 | AI114: 108 | AJ114: 2030-04-15 | AK114: 100000000 | AL114: 0 | AM114: -254794.5205 | AN114: 100000000 | AO114: 0 | AP114: -127397.2603 | AR114: 127397.2603 | AS114: 106600.7529 | AT114: 31
J115: FALSE | O115: 0 | P115: 0 | Q115: 0 | AA115: 2030-04-15 | AB115: 0 | AC115: 100000000 | AD115: -246575.3425 | AE115: -123287.6712 | AF115: 30 | AH115: 109 | AI115: 109 | AJ115: 2030-05-15 | AK115: 100000000 | AL115: 0 | AM115: -246575.3425 | AN115: 100000000 | AO115: 0 | AP115: -123287.6712 | AR115: 123287.6712 | AS115: 103007.5077 | AT115: 30
J116: FALSE | O116: 0 | P116: 0 | Q116: 0 | AA116: 2030-05-15 | AB116: 0 | AC116: 100000000 | AD116: -123287.6712 | AE116: -61643.83562 | AF116: 15 | AH116: 110 | AI116: 110 | AJ116: 2030-05-30 | AK116: 100000000 | AL116: 0 | AM116: -123287.6712 | AN116: 100000000 | AO116: 0 | AP116: -61643.83562 | AR116: 61643.83562 | AS116: 51426.61392 | AT116: 15
J117: =AI117>$D$15 -> TRUE | O117: 0 | P117: 0 | Q117: 0 | AA117: 2030-05-30 | AB117: 0 | AC117: 0 | AD117: 0 | AE117: 0 | AH117: 111 | AK117: 0 | AL117: 0 | AM117: 0 | AN117: 0 | AO117: 0 | AP117: 0 | AR117: 0
J118: TRUE | O118: 0 | P118: 0 | Q118: 0 | AA118: 00:00:00 | AB118: 0 | AC118: 0 | AD118: 0 | AE118: 0 | AH118: 112 | AK118: 0 | AL118: 0 | AM118: 0 | AN118: 0 | AO118: 0 | AP118: 0 | AR118: 0
J119: TRUE | O119: 0 | P119: 0 | Q119: 0 | AA119: 00:00:00 | AB119: 0 | AC119: 0 | AD119: 0 | AE119: 0 | AH119: 113 | AK119: 0 | AL119: 0 | AM119: 0 | AN119: 0 | AO119: 0 | AP119: 0 | AR119: 0
J120: TRUE | O120: 0 | P120: 0 | Q120: 0 | AA120: 00:00:00 | AB120: 0 | AC120: 0 | AD120: 0 | AE120: 0 | AH120: 114 | AK120: 0 | AL120: 0 | AM120: 0 | AN120: 0 | AO120: 0 | AP120: 0 | AR120: 0
J121: TRUE | O121: 0 | P121: 0 | Q121: 0 | AA121: 00:00:00 | AB121: 0 | AC121: 0 | AD121: 0 | AE121: 0 | AH121: 115 | AK121: 0 | AL121: 0 | AM121: 0 | AN121: 0 | AO121: 0 | AP121: 0 | AR121: 0
J122: TRUE | O122: 0 | P122: 0 | Q122: 0 | AA122: 00:00:00 | AB122: 0 | AC122: 0 | AD122: 0 | AE122: 0 | AH122: 116 | AK122: 0 | AL122: 0 | AM122: 0 | AN122: 0 | AO122: 0 | AP122: 0 | AR122: 0
J123: TRUE | O123: 0 | P123: 0 | Q123: 0 | AA123: 00:00:00 | AB123: 0 | AC123: 0 | AD123: 0 | AE123: 0 | AH123: 117 | AK123: 0 | AL123: 0 | AM123: 0 | AN123: 0 | AO123: 0 | AP123: 0 | AR123: 0
J124: TRUE | O124: 0 | P124: 0 | Q124: 0 | AA124: 00:00:00 | AB124: 0 | AC124: 0 | AD124: 0 | AE124: 0 | AH124: 118 | AK124: 0 | AL124: 0 | AM124: 0 | AN124: 0 | AO124: 0 | AP124: 0 | AR124: 0
J125: TRUE | O125: 0 | P125: 0 | Q125: 0 | AA125: 00:00:00 | AB125: 0 | AC125: 0 | AD125: 0 | AE125: 0 | AH125: 119 | AK125: 0 | AL125: 0 | AM125: 0 | AN125: 0 | AO125: 0 | AP125: 0 | AR125: 0
J126: TRUE | O126: 0 | P126: 0 | Q126: 0 | AA126: 00:00:00 | AB126: 0 | AC126: 0 | AD126: 0 | AE126: 0 | AH126: 120 | AK126: 0 | AL126: 0 | AM126: 0 | AN126: 0 | AO126: 0 | AP126: 0 | AR126: 0

Sheet Szamitasok (hidden)
A1: Kizárók és KO-k
E2: Mezőgazdasági | F2: Halászat/akvakultúra
A3: Szorzó értéke
A4: =PRODUCT(C4:W4) -> 0 | B4: általános
A5: =PRODUCT(E5:F5) -> 0 | B5: mezőgazdasági | E5: =IF(Tamogatastartalom!C22="Mezőgazdasági",1,0) -> 0
A6: =PRODUCT(E6:F6) -> 0 | B6: halászati | F6: =IF(Tamogatastartalom!C22="Halászati",1,0) -> 0
A7: 14-es cikk
A8: R szorzó értéke
A9: Elszámolható ktg-ek EUR-ban | B9: 0
A10: A Elszámolható költségek | B10: 0 | C10: 50000000
A11: B Elszámolható költségek | B11: =0 -> 0 | C11: 100000000
A12: C elszámolható költségek | B12: nincs!
A13: KKV bónusz | B13: 0.2
A14: Kaphat? | B14: =IF(B15>0,1,0) -> 1
A15: Alap intenzitás | B15: 0.35
A16: R szorzó értéke a támogatási térkép alapján | B16: 0.55
A17: Max. TT (EUR) | B17: =VLOOKUP(B15,Adatok!D12:E16,2,FALSE)*10^6 -> 26250000
A18: 17-es cikk
A19: Vállalatméret-szorzó | B19: =IF(D3="Nagy",0,IF(D3="Mikró/Kis",0.2,0.1)) -> 0.1
A20: HUF érték
A21: Elszámolható ktg-ek HUF-ban | B21: 0
A22: Hitel/támogatástartalom arány
A23: Hitelösszeg | B23: =Tamogatastartalom!C23 -> 100000000
A24: Támogatástartalom a futamidő alatt | B24: =Tamogatastartalom!AS5 -> 13706694.74
A25: Hitelösszeg/támogatástartalom | B25: =B23/B24 -> 7.295704899

Sheet Adatok (hidden)
A1: Felárak | M1: Segédszámítások
D2: Piaci referencia | J2: Refin kamatok | M2: Törlesztés | P2: Törlesztésgyakoriság | S2: Select | U2: Select
F3: Fedezettség | M3: Egyenlő összeg | N3: 1 | P3: Havi | Q3: 12 | S3: Beruházási hitel | U3: Beruházási hitel
F4: Magas | G4: Általános | H4: Alacsony | J4: Min 1 | K4: =refkam-3.5% -> -0.027 | M4: Egyenlő tőke | N4: 2 | P4: Negyedéves | Q4: 4 | S4: Forgóeszközhitel | U4: Lízing
D5: Hitelminősítés | E5: Kiváló | F5: 60 | G5: 75 | H5: 100 | J5: Min2 | K5: 0.001 | M5: Egyedi | N5: 0 | P5: Féléves | Q5: 2 | S5: Lízing
E6: Jó | F6: 75 | G6: 100 | H6: 220 | J6: Tényleges min | K6: =MAX(K4:K5) -> 0.001
E7: Kielégítő | F7: 100 | G7: 220 | H7: 400 | J7: Max | K7: =refkammin+4% -> 0.041 | M7: Annuitás
E8: Gyenge | F8: 220 | G8: 400 | H8: 650
E9: Rossz | F9: 400 | G9: 650 | H9: 1000
A10: Regionális támogatási intenzitások
B11: Nagyvállalat | D11: Intenzitás | E11: MAX Támogatástartalom (mio EUR)
A12: Select | B12: 0 | D12: 0.5 | E12: 37.5
A13: Dél-Alföld | B13: 0.5 | D13: 0.35 | E13: 26.25
A14: Dél-Dunántúl | B14: 0.5 | D14: 0.25 | E14: 18.75
A15: Észak-Alföld | B15: 0.5 | D15: 0.2 | E15: 15
A16: Észak-Magyarország | B16: 0.5 | D16: 0 | E16: 0
A17: Közép-Dunántúl | B17: 0.35
A18: Közép_Magyarország | B18: 0
A19: Nyugat-Dunántúl | B19: 0.25
B20: 14-es cikk
A21: Select | B21: 0
A22: Budapest | B22: 0
A23: Abony | B23: 0.35
A24: Acsa | B24: 0
A25: Albertirsa | B25: 0
A26: Alsónémedi | B26: 0.35
A27: Apaj | B27: 0
A28: Áporka | B28: 0.35
A29: Aszód | B29: 0.35
A30: Bag | B30: 0.35
A31: Bénye | B31: 0
A32: Bernecebaráti | B32: 0.35
A33: Biatorbágy | B33: 0
A34: Budajenő | B34: 0
A35: Budakalász | B35: 0
A36: Budakeszi | B36: 0
A37: Budaörs | B37: 0
A38: Budapest | B38: 0
A39: Bugyi | B39: 0
A40: Cegléd | B40: 0.35
A41: Ceglédbercel | B41: 0
A42: Csemő | B42: 0.35
A43: Csévharaszt | B43: 0
A44: Csobánka | B44: 0
A45: Csomád | B45: 0
A46: Csömör | B46: 0
A47: Csörög | B47: 0
A48: Csővár | B48: 0
A49: Dabas | B49: 0.35
A50: Dánszentmiklós | B50: 0
A51: Dány | B51: 0
A52: Délegyháza | B52: 0
A53: Diósd | B53: 0
A54: Domony | B54: 0.35
A55: Dömösd | B55: 0
A56: Dunabogdány | B56: 0
A57: Dunaharaszti | B57: 0.35
A58: Dunakeszi | B58: 0
A59: Dunavarsány | B59: 0
A60: Ecser | B60: 0.35
A61: Érd | B61: 0.35
A62: Erdőkertes | B62: 0
A63: Farmos | B63: 0.35
A64: Felsőpakony | B64: 0.35
A65: Fót | B65: 0
A66: Galagyörk | B66: 0
A67: Galahévíz | B67: 0
A68: Galamácsa | B68: 0
A69: Gomba | B69: 0
A70: Göd | B70: 0.35
A71: Gödöllő | B71: 0.35
A72: Gyál | B72: 0.35
A73: Gyömörő | B73: 0
A74: Halásztelek | B74: 0.35
A75: Herceghalom | B75: 0
A76: Hernád | B76: 0
A77: Hévizgyörk | B77: 0
A78: Iklad | B78: 0.35
A79: Inárcs | B79: 0
A80: Ipolydamásd | B80: 0.35
A81: Ipolytölgyes | B81: 0.35
A82: Isaszeg | B82: 0
A83: Jászkarajenő | B83: 0.35
A84: Kakucs | B84: 0
A85: Kartal | B85: 0.35
A86: Káva | B86: 0
A87: Kemence | B87: 0.35
A88: Kerepes | B88: 0
A89: Kiskunlacháza | B89: 0.35
A90: Kismaros | B90: 0
A91: Kisnémedi | B91: 0.35
A92: Kisoroszi | B92: 0
A93: Kistarcsa | B93: 0
A94: Kocsér | B94: 0.35
A95: Kóka | B95: 0
A96: Kosd | B96: 0
A97: Kóspallag | B97: 0.35
A98: Kőröstételen | B98: 0
A99: Leányfalu | B99: 0
A100: Letkés | B100: 0.35
A101: Lórév | B101: 0.35
A102: Maglód | B102: 0.35
A103: Majosháza | B103: 0
A104: Makád | B104: 0.35
A105: Márianosztra | B105: 0.35
A106: Mende | B106: 0
A107: Mikebuda | B107: 0.35
A108: Mogyoród | B108: 0
A109: Monor | B109: 0.35
A110: Nagybörzsöny | B110: 0.35
A111: Nagykáta | B111: 0.35
A112: Nagykovácsi | B112: 0
A113: Nagykőrös | B113: 0.35
A114: Nagymaros | B114: 0
A115: Nagytarcsa | B115: 0.35
A116: Nyáregyháza | B116: 0
A117: Nyársapát | B117: 0.35
A118: Ócsa | B118: 0.35
A119: Őrbottyán | B119: 0
A120: Örkény | B120: 0.35
A121: Pánd | B121: 0
A122: Páty | B122: 0
A123: Pécel | B123: 0.35
A124: Penc | B124: 0
A125: Perbál | B125: 0
A126: Perőcsény | B126: 0.35
A127: Péteri | B127: 0.35
A128: Pilis | B128: 0
A129: Pilisborosjenő | B129: 0
A130: Piliscsaba | B130: 0.2
A131: Pilisjászfalu | B131: 0.2
A132: Pilisszántó | B132: 0
A133: Pilisszentiván | B133: 0
A134: Pilisszentkereszt | B134: 0
A135: Pilisszentlászló | B135: 0
A136: Pilisvörösvár | B136: 0
A137: Pócsmegyer | B137: 0
A138: Pomáz | B138: 0
A139: Pusztavacs | B139: 0
A140: Pusztazámor | B140: 0
A141: Püspökhatvan | B141: 0.35
A142: Püspökszilágy | B142: 0.35
A143: Ráckeve | B143: 0.35
A144: Rád | B144: 0
A145: Remeteszőlős | B145: 0
A146: Solymár | B146: 0
A147: Sóskút | B147: 0
A148: Sülysáp | B148: 0
A149: Szada | B149: 0
A150: Százhalombatta | B150: 0
A151: Szentendre | B151: 0
A152: Szentmártonkáta | B152: 0.35
A153: Szentlőrinckáta | B153: 0
A154: Szigetbecse | B154: 0.35
A155: Szigetcsép | B155: 0
A156: Szigethalom | B156: 0
A157: Szigetmonostor | B157: 0
A158: Szigetszentmárton | B158: 0
A159: Szigetszentmiklós | B159: 0.35
A160: Szigetújfalu | B160: 0
A161: Szob | B161: 0.35
A162: Szokolya | B162: 0.35
A163: Sződ | B163: 0
A164: Sződliget | B164: 0.35
A165: Táborfalva | B165: 0.35
A166: Tahitótfalu | B166: 0
A167: Taksony | B167: 0
A168: Tápióbicske | B168: 0.35
A169: Tápiógyörgye | B169: 0.35
A170: Tápióság | B170: 0.35
A171: Tápiószecső | B171: 0
A172: Tápiószele | B172: 0.35
A173: Tápiószentmárton | B173: 0.35
A174: Tápiószőlős | B174: 0.35
A175: Tárnok | B175: 0
A176: Tatárszentgyörgy | B176: 0.35
A177: Telki | B177: 0
A178: Tésa | B178: 0.35
A179: Tinnye | B179: 0
A180: Tóalmás | B180: 0
A181: Tök | B181: 0
A182: Tököl | B182: 0
A183: Törökbálint | B183: 0
A184: Törtel | B184: 0.35
A185: Tura | B185: 0.35
A186: Újhartyán | B186: 0.35
A187: Újlengyel | B187: 0
A188: Újszilvás | B188: 0.35
A189: Úri | B189: 0
A190: Üllő | B190: 0.35
A191: Üröm | B191: 0
A192: Vác | B192: 0.35
A193: Vácduka | B193: 0
A194: Vácegres | B194: 0
A195: Váchartyán | B195: 0
A196: Váckisújfalu | B196: 0.35
A197: Vácrátót | B197: 0
A198: Vácaszentlászló | B198: 0
A199: Valkó | B199: 0.35
A200: Vámosmikola | B200: 0.35
... 16 more rows
